fUSD/lending_fUSD_20250629
["ID","MTS","AMOUNT","RATE_DAILY","PERIOD"]
[368456681,1751182290188,-490.0,0.00028603,3]
[368456682,1751182290198,-490.0,0.00028603,3]
[368456683,1751182290207,-490.0,0.00028603,3]
[368456684,1751182290216,-490.0,0.00028603,3]
[368456685,1751182290226,-490.0,0.00028603,3]
[368456686,1751182290236,-490.0,0.00028603,3]
[368456687,1751182290245,-490.0,0.00028603,3]
[368456688,1751182290254,-490.0,0.00028603,3]
[368456689,1751182290263,-490.0,0.00028603,3]
[368456690,1751182290272,-1510.82,0.00028603,3]
[368456691,1751182290282,-493.05547117,0.00028603,3]
[368456692,1751182290292,-490.0,0.00028603,3]
[368456693,1751182290301,-490.0,0.00028603,3]
[368456694,1751182290311,-1307.13,0.00028603,3]
[368456695,1751182290320,-1107.02,0.00028603,3]
[368456696,1751182290330,-490.0,0.00028603,3]
[368456697,1751182290339,-490.0,0.00028603,3]
[368456698,1751182290349,-490.0,0.00028603,3]
[368456699,1751182290358,-490.0,0.00028603,3]
[368456700,1751182290368,-767.76,0.00028603,3]
[368456701,1751182290377,-600.7,0.00028603,3]
[368456702,1751182290387,-490.0,0.00028603,3]
[368456703,1751182290398,-1219.76,0.00028603,3]
[368456704,1751182290408,-707.86,0.00028603,3]
[368456705,1751182290419,-490.0,0.00028603,3]
[368456706,1751182290430,-490.0,0.00028603,3]
[368456707,1751182290439,-490.0,0.00028603,3]
[368456708,1751182290449,-490.0,0.00028603,3]
[368456709,1751182290460,-490.0,0.00028603,3]
[368456710,1751182290471,-490.0,0.00028603,3]
[368456711,1751182290480,-1432.05,0.00028603,3]
[368456712,1751182290490,-490.0,0.00028603,3]
[368456713,1751182290499,-490.0,0.00028603,3]
[368456714,1751182290509,-490.0,0.00028603,3]
[368456715,1751182290518,-490.0,0.00028603,3]
[368456716,1751182290528,-490.0,0.00028603,3]
[368456717,1751182290538,-490.0,0.00028603,3]
[368456718,1751182290547,-490.0,0.00028603,3]
[368456719,1751182290556,-562.15,0.00028603,3]
[368456720,1751182290566,-490.0,0.00028603,3]
[368456721,1751182290576,-490.0,0.00028603,3]
[368456722,1751182290585,-1885.51,0.00028603,3]
[368456723,1751182290595,-490.0,0.00028603,3]
[368456724,1751182290605,-490.0,0.00028603,3]
[368456725,1751182290614,-490.0,0.00028603,3]
[368456726,1751182290624,-490.0,0.00028603,3]
[368456727,1751182290634,-1766.65,0.00028603,3]
[368456728,1751182290643,-490.0,0.00028603,3]
[368456729,1751182290653,-496.96,0.00028603,3]
[368456730,1751182290663,-490.0,0.00028603,3]
[368456731,1751182290673,-1107.37,0.00028603,3]
[368456732,1751182290683,-490.0,0.00028603,3]
[368456733,1751182290692,-490.0,0.00028603,3]
[368456734,1751182290701,-490.0,0.00028603,3]
[368456735,1751182290710,-552.79,0.00028603,3]
[368456736,1751182290719,-895.49,0.00028603,3]
[368456737,1751182290729,-580.3,0.00028603,3]
[368456738,1751182290738,-490.0,0.00028603,3]
[368456739,1751182290747,-490.0,0.00028603,3]
[368456740,1751182290756,-1554.38,0.00028603,3]
[368456741,1751182290765,-490.0,0.00028603,3]
[368456742,1751182290775,-565.81,0.00028603,3]
[368456743,1751182290784,-490.0,0.00028603,3]
[368456744,1751182290794,-490.0,0.00028603,3]
[368456745,1751182290803,-490.0,0.00028603,3]
[368456746,1751182290813,-490.0,0.00028603,3]
[368456747,1751182290822,-695.15,0.00028603,3]
[368456748,1751182290832,-490.0,0.00028603,3]
[368456749,1751182290841,-644.03,0.00028603,3]
[368456750,1751182290851,-490.0,0.00028603,3]
[368456751,1751182290860,-665.27,0.00028603,3]
[368456752,1751182290870,-684.69,0.00028603,3]
[368456753,1751182290879,-490.0,0.00028603,3]
[368456754,1751182290889,-490.0,0.00028603,3]
[368456755,1751182290898,-490.0,0.00028603,3]
[368456756,1751182290907,-490.0,0.00028603,3]
[368456757,1751182290917,-490.0,0.00028603,3]
[368456758,1751182290926,-490.0,0.00028603,3]
[368456759,1751182290935,-490.0,0.00028603,3]
[368456760,1751182290944,-490.0,0.00028603,3]
[368456761,1751182290954,-594.6,0.00028603,3]
[368456762,1751182290964,-490.0,0.00028603,3]
[368456763,1751182290973,-557.01,0.00028603,3]
[368456764,1751182290983,-843.55,0.00028603,3]
[368456765,1751182290992,-799.62,0.00028604,3]
[368456766,1751182291001,-490.28,0.00028604,3]
[368456767,1751182291011,-492.54,0.00028604,3]
[368456768,1751182291020,-490.0,0.00028604,3]
[368456769,1751182291029,-205.55397326,0.0002864,2]
[368456770,1751182291039,-152.63619725,0.00028664,2]
[368456771,1751182291048,-1000.0,0.00028684,5]
[368456772,1751182291058,-1700.74,0.00028693,3]
[368456773,1751182291067,-490.0,0.000287,3]
[368456774,1751182291077,-490.0,0.000287,3]
[368456775,1751182291087,-500.33,0.000287,3]
[368456776,1751182291096,-490.0,0.000287,3]
[368456777,1751182291105,-490.0,0.000287,3]
[368456778,1751182291115,-515.65,0.000287,3]
[368456779,1751182291125,-490.0,0.000287,3]
[368456780,1751182291134,-2086.22,0.000287,3]
[368456781,1751182291144,-490.0,0.000287,3]
[368456782,1751182291153,-490.0,0.000287,3]
[368456783,1751182291163,-4978.16,0.000287,3]
[368456784,1751182291172,-1878.24,0.000287,3]
[368456785,1751182291189,-490.0,0.000287,3]
[368456786,1751182291199,-490.0,0.000287,3]
[368456787,1751182291208,-490.0,0.000287,3]
[368456788,1751182291218,-490.0,0.000287,3]
[368456789,1751182291230,-2468.25,0.000287,3]
[368456790,1751182291240,-490.0,0.000287,3]
[368456791,1751182291249,-2136.44,0.000287,3]
[368456792,1751182291260,-548.4,0.000287,3]
[368456793,1751182291269,-7535.42,0.000287,3]
[368456794,1751182291278,-490.0,0.000287,3]
[368456795,1751182291288,-1700.74,0.00028701,3]
[368456796,1751182291297,-490.0,0.00028703,3]
[368456797,1751182291307,-490.0,0.00028703,3]
[368456798,1751182291316,-659.74,0.00028703,3]
[368456799,1751182291326,-508.77,0.00028703,3]
[368456800,1751182291335,-652.71,0.00028703,3]
[368456801,1751182291344,-2322.34,0.00028703,3]
[368456802,1751182291353,-1347.64,0.00028703,3]
[368456803,1751182291362,-490.0,0.00028703,3]
[368456804,1751182291371,-512.42107956,0.00028703,3]
[368456805,1751182291381,-490.0,0.00028703,3]
[368456806,1751182291390,-2628.71,0.00028703,3]
[368456807,1751182291399,-526.04,0.00028703,3]
[368456808,1751182291409,-490.0,0.00028703,3]
[368456809,1751182291418,-550.0,0.00028703,3]
[368456810,1751182291427,-1726.56,0.00028703,3]
[368456811,1751182291436,-645.02,0.00028703,3]
[368456812,1751182291445,-517.4,0.00028703,3]
[368456813,1751182291454,-591.71,0.00028703,3]
[368456814,1751182291463,-1536.91,0.00028703,3]
[368456815,1751182291472,-1210.34,0.00028703,3]
[368456816,1751182291481,-1599.27,0.00028703,3]
[368456817,1751182291490,-915.7,0.00028703,3]
[368456818,1751182291500,-1996.5,0.00028703,3]
[368456819,1751182291509,-1349.21,0.00028703,3]
[368456820,1751182291518,-1183.45,0.00028703,3]
[368456821,1751182291527,-2996.24,0.00028703,3]
[368456822,1751182291537,-986.41,0.00028703,3]
[368456823,1751182291546,-1708.84,0.00028703,3]
[368456824,1751182291555,-490.0,0.00028703,3]
[368456825,1751182291564,-1464.97,0.00028703,3]
[368456826,1751182291573,-1068.44,0.00028703,3]
[368456827,1751182291583,-1269.67,0.00028703,3]
[368456828,1751182291592,-1547.48,0.00028703,3]
[368456829,1751182291602,-627.18,0.00028703,3]
[368456830,1751182291611,-1632.32,0.00028703,3]
[368456831,1751182291621,-1103.54,0.00028703,3]
[368456832,1751182291630,-2740.12,0.00028703,3]
[368456833,1751182291641,-769.51,0.00028703,3]
[368456834,1751182291651,-490.0,0.00028703,3]
[368456835,1751182291660,-490.0,0.00028703,3]
[368456836,1751182291670,-1214.36,0.00028703,3]
[368456837,1751182291679,-1013.34,0.00028703,3]
[368456838,1751182291689,-500.0,0.00028703,3]
[368456839,1751182291699,-490.0,0.00028703,3]
[368456840,1751182291708,-1528.6,0.00028703,3]
[368456841,1751182291717,-490.0,0.00028703,3]
[368456842,1751182291728,-490.0,0.00028703,3]
[368456843,1751182291736,-1298.66,0.00028703,3]
[368456844,1751182291747,-490.0,0.00028703,3]
[368456845,1751182291756,-450.02264435,0.00028703,3]
[368456846,1751182291765,-1041.03,0.00028703,3]
[368456847,1751182291774,-533.04821454,0.00028703,3]
[368456848,1751182291784,-741.16,0.00028703,3]
[368456849,1751182291793,-900.77,0.00028703,3]
[368456850,1751182291803,-490.0,0.00028703,3]
[368456851,1751182291813,-961.94,0.00028703,3]
[368456852,1751182291822,-2547.46,0.00028703,3]
[368456853,1751182291832,-1257.47,0.00028703,3]
[368456854,1751182291841,-490.0,0.00028703,3]
[368456855,1751182291851,-490.0,0.00028703,3]
[368456856,1751182291861,-619.51,0.00028703,3]
[368456857,1751182291870,-486.855822,0.00028703,3]
[368456858,1751182291879,-1256.71,0.00028703,3]
[368456859,1751182291889,-764.75,0.00028703,3]
[368456860,1751182291898,-1126.57,0.00028703,3]
[368456861,1751182291907,-490.0,0.00028703,3]
[368456862,1751182291917,-1937.9,0.00028703,3]
[368456863,1751182291926,-518.43,0.00028703,3]
[368456864,1751182291935,-490.0,0.00028703,3]
[368456865,1751182291944,-490.0,0.00028703,3]
[368456866,1751182291953,-490.0,0.00028703,3]
[368456867,1751182291962,-1121.66,0.00028703,3]
[368456868,1751182291973,-490.0,0.00028703,3]
[368456869,1751182291984,-501.15191575,0.00028703,3]
[368456870,1751182291993,-490.0,0.00028703,3]
[368456871,1751182292003,-699.3,0.00028703,3]
[368456872,1751182292012,-490.0,0.00028703,3]
[368456873,1751182292021,-490.0,0.00028703,3]
[368456874,1751182292030,-490.0,0.00028703,3]
[368456875,1751182292039,-1551.2,0.00028703,3]
[368456876,1751182292049,-455.11909661,0.00028703,3]
[368456877,1751182292160,-490.0,0.00028703,3]
[368456878,1751182292171,-892.47,0.00028703,3]
[368456879,1751182292182,-490.0,0.00028703,3]
[368456880,1751182292191,-2782.87,0.00028703,3]
[368456881,1751182292201,-1321.79,0.00028703,3]
[368456882,1751182292210,-1573.3,0.00028703,3]
[368456883,1751182292219,-490.0,0.00028703,3]
[368456884,1751182292229,-569.0,0.00028703,3]
[368456885,1751182292238,-490.0,0.00028703,3]
[368456886,1751182292247,-204.49,0.00028703,3]
[368456887,1751182292257,-1214.94,0.00028703,3]
[368456888,1751182292266,-554.38,0.00028703,3]
[368456889,1751182292275,-926.52,0.00028703,3]
[368456890,1751182292284,-1419.18,0.00028703,3]
[368456891,1751182292293,-193.32594189,0.00028703,3]
[368456892,1751182292302,-542.56,0.00028703,2]
[368456893,1751182292312,-490.0,0.00028703,3]
[368456894,1751182292321,-490.0,0.00028703,3]
[368456895,1751182292330,-1795.78,0.00028703,3]
[368456896,1751182292340,-2190.73,0.00028703,3]
[368456897,1751182292349,-490.0,0.00028703,3]
[368456898,1751182292358,-490.0,0.00028703,3]
[368456899,1751182292367,-1308.62,0.00028703,3]
[368456900,1751182292377,-490.0,0.00028703,3]
[368456901,1751182292386,-5038.91,0.00028703,3]
[368456902,1751182292395,-490.0,0.00028703,3]
[368456903,1751182292404,-490.0,0.00028703,3]
[368456904,1751182292414,-2195.476821,0.00028703,3]
[368456905,1751182292423,-1062.78,0.00028703,3]
[368456906,1751182292432,-414.88002087,0.00028703,3]
[368456907,1751182292441,-151.887036,0.00028703,3]
[368456908,1751182292450,-1918.05,0.00028703,3]
[368456909,1751182292459,-367.73829,0.00028703,3]
[368456910,1751182292469,-490.0,0.00028703,3]
[368456911,1751182292478,-2779.41,0.00028703,3]
[368456912,1751182292487,-9441.19,0.00028703,3]
[368456913,1751182292496,-2940.912066,0.00028703,3]
[368456914,1751182292506,-2450.95,0.00028703,3]
[368456915,1751182292515,-490.0,0.00028703,3]
[368456916,1751182292524,-1090.76,0.00028703,3]
[368456917,1751182292533,-709.65,0.00028703,3]
[368456918,1751182292543,-2226.72,0.00028703,3]
[368456919,1751182292552,-2138.51,0.00028703,3]
[368456920,1751182292563,-3209.867075,0.00028703,3]
[368456921,1751182292572,-1417.53,0.00028703,3]
[368456922,1751182292581,-1745.41,0.00028703,3]
[368456923,1751182292591,-2036.27,0.00028703,3]
[368456924,1751182292600,-490.0,0.00028703,3]
[368456925,1751182292610,-586.98,0.00028703,3]
[368456926,1751182292619,-1436.09,0.00028703,3]
[368456927,1751182292629,-490.0,0.00028703,3]
[368456928,1751182292638,-2301.62,0.00028703,3]
[368456929,1751182292648,-1622.86,0.00028703,3]
[368456930,1751182292658,-10744.09,0.00028703,3]
[368456931,1751182292667,-490.0,0.00028703,3]
[368456932,1751182292676,-490.0,0.00028703,3]
[368456933,1751182292686,-490.0,0.00028703,3]
[368456934,1751182292695,-564.68304594,0.00028703,3]
[368456935,1751182292704,-490.0,0.00028703,3]
[368456936,1751182292714,-490.0,0.00028703,3]
[368456937,1751182292723,-490.0,0.00028703,3]
[368456938,1751182292733,-1177.75,0.00028703,3]
[368456939,1751182292743,-2436.87,0.00028703,3]
[368456940,1751182292752,-2799.08,0.00028703,3]
[368456941,1751182292761,-490.0,0.00028703,3]
[368456942,1751182292771,-1919.68,0.00028703,3]
[368456943,1751182292781,-490.0,0.00028703,3]
[368456944,1751182292791,-490.0,0.00028703,3]
[368456945,1751182292800,-1099.67,0.00028703,3]
[368456946,1751182292810,-2829.49,0.00028703,3]
[368456947,1751182292819,-1311.27,0.00028703,3]
[368456948,1751182292829,-490.0,0.00028703,3]
[368456949,1751182292838,-154.974835,0.00028703,3]
[368456950,1751182292847,-1298.79,0.00028703,3]
[368456951,1751182292857,-2812.32,0.00028703,3]
[368456952,1751182292867,-2589.71,0.00028703,3]
[368456953,1751182292876,-592.14603291,0.00028703,3]
[368456954,1751182292885,-554.13,0.00028703,3]
[368456955,1751182292895,-543.32395637,0.00028703,3]
[368456956,1751182292904,-2344.32,0.00028703,3]
[368456957,1751182292913,-153.43889,0.00028703,3]
[368456958,1751182292923,-490.0,0.00028703,3]
[368456959,1751182292932,-1318.19,0.00028703,3]
[368456960,1751182292942,-500.0,0.00028703,3]
[368456961,1751182292951,-2236.75,0.00028703,3]
[368456962,1751182292961,-1960.8,0.00028703,3]
[368456963,1751182292971,-152.96655306,0.00028703,3]
[368456964,1751182292980,-1862.37,0.00028703,3]
[368456965,1751182292989,-322.41769592,0.00028703,3]
[368456966,1751182292998,-4588.45,0.00028703,3]
[368456967,1751182293008,-160.493354,0.00028703,3]
[368456968,1751182293018,-150.0,0.00028703,2]
[368456969,1751182293027,-150.0,0.00028703,2]
[368456970,1751182293036,-490.0,0.00028703,3]
[368456971,1751182293046,-13062.02,0.00028703,3]
[368456972,1751182293055,-490.0,0.00028703,3]
[368456973,1751182293065,-1135.27,0.00028703,3]
[368456974,1751182293075,-775.07,0.00028704,3]
[368456975,1751182293085,-1012.34,0.00028704,3]
[368456976,1751182293094,-490.0,0.00028704,3]
[368456977,1751182293104,-490.0,0.00028704,3]
[368456978,1751182293114,-452.22817529,0.00028704,3]
[368456979,1751182293124,-490.0,0.00028704,3]
[368456980,1751182293134,-2260.52,0.00028704,3]
[368456981,1751182293143,-1530.6,0.00028704,3]
[368456982,1751182293153,-2154.93,0.00028704,3]
[368456983,1751182293162,-2500.0,0.00028704,3]
[368456984,1751182293171,-886.28,0.00028704,3]
[368456985,1751182293183,-1930.86,0.00028704,3]
[368456986,1751182293193,-1969.92,0.00028704,3]
[368456987,1751182293203,-1372.39,0.00028704,3]
[368456988,1751182293212,-490.0,0.00028704,3]
[368456989,1751182293223,-490.0,0.00028704,3]
[368456990,1751182293233,-490.0,0.00028704,3]
[368456991,1751182293243,-490.0,0.00028704,3]
[368456992,1751182293252,-1425.91,0.00028704,3]
[368456993,1751182293264,-2179.7,0.00028704,3]
[368456994,1751182293274,-1435.02,0.00028704,3]
[368456995,1751182293283,-1284.69,0.00028704,3]
[368456996,1751182293292,-2961.57,0.00028704,3]
[368456997,1751182293301,-2544.77,0.00028704,3]
[368456998,1751182293311,-490.0,0.00028704,3]
[368456999,1751182293320,-1245.79,0.00028704,3]
[368457000,1751182293329,-490.0,0.00028704,3]
[368457001,1751182293339,-1321.57,0.00028704,3]
[368457002,1751182293348,-2300.75,0.00028704,3]
[368457003,1751182293357,-2011.03,0.00028704,3]
[368457004,1751182293366,-490.0,0.00028704,3]
[368457005,1751182293375,-490.0,0.00028704,3]
[368457006,1751182293384,-490.0,0.00028704,3]
[368457007,1751182293394,-2320.15,0.00028704,3]
[368457008,1751182293403,-1037.74,0.00028704,3]
[368457009,1751182293413,-2583.7,0.00028704,3]
[368457010,1751182293422,-1155.94,0.00028704,3]
[368457011,1751182293431,-2883.83,0.00028704,3]
[368457012,1751182293441,-490.0,0.00028704,3]
[368457013,1751182293451,-490.0,0.00028704,3]
[368457014,1751182293461,-1807.92,0.00028704,3]
[368457015,1751182293470,-1810.73,0.00028704,3]
[368457016,1751182293480,-601.05,0.00028704,3]
[368457017,1751182293490,-1821.33,0.00028704,3]
[368457018,1751182293499,-2243.07,0.00028704,3]
[368457019,1751182293509,-490.0,0.00028704,3]
[368457020,1751182293519,-1737.55,0.00028704,3]
[368457021,1751182293529,-1679.85,0.00028704,3]
[368457022,1751182293539,-2079.58,0.00028704,3]
[368457023,1751182293548,-2091.86,0.00028704,3]
[368457024,1751182293558,-490.0,0.00028704,3]
[368457025,1751182293568,-793.31,0.00028704,3]
[368457026,1751182293577,-1873.65,0.00028704,3]
[368457027,1751182293587,-1518.56,0.00028704,3]
[368457028,1751182293597,-1380.13,0.00028704,3]
[368457029,1751182293607,-1874.18,0.00028704,3]
[368457030,1751182293616,-490.0,0.00028704,3]
[368457031,1751182293626,-1299.19,0.00028704,3]
[368457032,1751182293636,-546.34,0.00028704,3]
[368457033,1751182293646,-2122.4,0.00028704,3]
[368457034,1751182293655,-3200.43,0.00028704,3]
[368457035,1751182293665,-1835.86,0.00028704,3]
[368457036,1751182293675,-4705.46,0.00028704,3]
[368457037,1751182293684,-490.15,0.00028704,3]
[368457038,1751182293694,-2941.76,0.00028704,3]
[368457039,1751182293704,-806.93,0.00028704,3]
[368457040,1751182293713,-3406.06,0.00028704,3]
[368457041,1751182293723,-4388.37,0.00028704,3]
[368457042,1751182293734,-2455.53,0.00028704,3]
[368457043,1751182293743,-3125.81,0.00028704,3]
[368457044,1751182293753,-2248.55,0.00028704,3]
[368457045,1751182293763,-1867.83,0.00028704,3]
[368457046,1751182293772,-2165.49,0.00028704,3]
[368457047,1751182293782,-3729.06,0.00028704,3]
[368457048,1751182293792,-2702.4,0.00028704,3]
[368457049,1751182293801,-711.24,0.00028704,3]
[368457050,1751182293812,-6737.6,0.00028704,3]
[368457051,1751182293822,-789.86,0.00028704,3]
[368457052,1751182293832,-2289.46,0.00028704,3]
[368457053,1751182293841,-1131.65,0.00028704,3]
[368457054,1751182293851,-536.97248832,0.00028704,3]
[368457055,1751182293861,-1554.79,0.00028704,3]
[368457056,1751182293871,-2936.86,0.00028704,3]
[368457057,1751182293880,-687.13,0.00028704,3]
[368457058,1751182293890,-2880.67,0.00028704,3]
[368457059,1751182293900,-1874.07,0.00028704,3]
[368457060,1751182293910,-2301.47,0.00028704,3]
[368457061,1751182293920,-490.0,0.00028704,3]
[368457062,1751182293930,-2611.19,0.00028704,3]
[368457063,1751182293940,-1808.02,0.00028704,3]
[368457064,1751182293949,-490.0,0.00028704,3]
[368457065,1751182293959,-1126.61,0.00028704,3]
[368457066,1751182293969,-7374.62,0.00028704,3]
[368457067,1751182293979,-8804.63,0.00028704,3]
[368457068,1751182293989,-1766.37,0.00028704,3]
[368457069,1751182293999,-10168.25,0.00028704,3]
[368457070,1751182294009,-11501.68,0.00028704,3]
[368457071,1751182294019,-1338.4,0.00028704,3]
[368457072,1751182294028,-4148.45,0.00028704,3]
[368457073,1751182294038,-503.88595502,0.00028704,3]
[368457074,1751182294049,-1396.59,0.00028704,3]
[368457075,1751182294059,-490.0,0.00028704,3]
[368457076,1751182294069,-2806.96,0.00028704,3]
[368457077,1751182294079,-5920.07,0.00028704,3]
[368457078,1751182294089,-2535.69,0.00028704,3]
[368457079,1751182294100,-1686.82,0.00028704,3]
[368457080,1751182294110,-490.0,0.00028704,3]
[368457081,1751182294120,-2708.06,0.00028704,3]
[368457082,1751182294131,-1662.59,0.00028704,3]
[368457083,1751182294141,-490.0,0.00028704,3]
[368457084,1751182294150,-1933.66,0.00028704,3]
[368457085,1751182294161,-869.97629,0.0002871,2]
[368457086,1751182294171,-490.0,0.00028712,3]
[368457087,1751182294183,-490.0,0.00028712,3]
[368457088,1751182294197,-490.0,0.00028712,3]
[368457089,1751182294206,-490.0,0.00028712,3]
[368457090,1751182294217,-490.0,0.00028712,3]
[368457091,1751182294227,-604.63930528,0.00028712,3]
[368457092,1751182294237,-490.0,0.00028712,3]
[368457093,1751182294247,-964.19,0.00028712,3]
[368457094,1751182294257,-2951.27,0.00028712,3]
[368457095,1751182294267,-2756.58,0.00028712,3]
[368457096,1751182294277,-3180.03,0.00028712,3]
[368457097,1751182294287,-6822.42,0.00028712,3]
[368457098,1751182294297,-1477.92,0.00028712,3]
[368457099,1751182294307,-2515.35,0.00028712,3]
[368457100,1751182294317,-2328.17,0.00028712,3]
[368457101,1751182294327,-590.04,0.00028712,3]
[368457102,1751182294339,-3777.15,0.00028712,3]
[368457103,1751182294349,-2074.62,0.00028712,3]
[368457104,1751182294358,-4278.36,0.00028712,3]
[368457105,1751182294368,-4385.06,0.00028712,3]
[368457106,1751182294378,-2735.66,0.00028712,3]
[368457107,1751182294387,-2135.46,0.00028712,3]
[368457108,1751182294397,-4138.99,0.00028712,3]
[368457109,1751182294406,-4694.82,0.00028712,3]
[368457110,1751182294417,-3835.69,0.00028712,3]
[368457111,1751182294427,-3587.26,0.00028712,3]
[368457112,1751182294437,-1142.37,0.00028713,3]
[368457113,1751182294447,-859.15,0.00028713,3]
[368457114,1751182294458,-490.0,0.00028713,3]
[368457115,1751182294467,-490.0,0.00028713,3]
[368457116,1751182294477,-686.69,0.00028713,3]
[368457117,1751182294486,-490.0,0.00028713,3]
[368457118,1751182294495,-1243.41,0.00028713,3]
[368457119,1751182294505,-610.42,0.00028713,3]
[368457120,1751182294514,-490.0,0.00028713,3]
[368457121,1751182294524,-6449.94,0.00028713,3]
[368457122,1751182294534,-2428.46,0.00028713,3]
[368457123,1751182294545,-2302.8,0.00028713,3]
[368457124,1751182294554,-2237.95,0.00028713,3]
[368457125,1751182294565,-1270.62,0.00028713,3]
[368457126,1751182294574,-3063.2,0.00028713,3]
[368457127,1751182294584,-1700.74,0.00028713,3]
[368457128,1751182294593,-1700.74,0.00028713,3]
[368457129,1751182294603,-3728.98,0.00028713,3]
[368457130,1751182294613,-1956.9,0.00028713,3]
[368457131,1751182294623,-3352.59,0.00028713,3]
[368457132,1751182294632,-2398.93,0.00028713,3]
[368457133,1751182294642,-760.07,0.00028713,3]
[368457134,1751182294651,-1679.51,0.00028713,3]
[368457135,1751182294662,-1300.72,0.00028713,3]
[368457136,1751182294671,-1231.97,0.00028713,3]
[368457137,1751182294680,-4027.43,0.00028713,3]
[368457138,1751182294691,-1699.97,0.00028713,3]
[368457139,1751182294700,-3154.44,0.00028713,3]
[368457140,1751182294710,-2249.68,0.00028713,3]
[368457141,1751182294720,-2816.41,0.00028713,3]
[368457142,1751182294730,-2391.75,0.00028713,3]
[368457143,1751182294740,-150.0,0.00028713,2]
[368457144,1751182294751,-29872.53,0.00028713,3]
[368457145,1751182294760,-2458.27,0.00028714,3]
[368457146,1751182294770,-929.38,0.00028714,3]
[368457147,1751182294780,-3630.15,0.00028714,3]
[368457148,1751182294790,-2325.15,0.00028714,3]
[368457149,1751182294799,-16257.32,0.00028714,3]
[368457150,1751182294810,-7724.83,0.00028714,3]
[368457151,1751182294819,-2149.5,0.00028714,3]
[368457152,1751182294830,-5677.04,0.00028714,3]
[368457153,1751182294839,-2531.52,0.00028714,3]
[368457154,1751182294850,-6800.29,0.00028714,3]
[368457155,1751182294860,-3276.18,0.00028714,3]
[368457156,1751182294870,-3692.76,0.00028714,3]
[368457157,1751182294879,-14547.11,0.00028714,3]
[368457158,1751182294889,-4651.63,0.00028714,3]
[368457159,1751182294899,-5615.45,0.00028714,3]
[368457160,1751182294908,-2445.2,0.00028714,3]
[368457161,1751182294919,-1449.77,0.00028714,3]
[368457162,1751182294928,-6377.64,0.00028714,3]
[368457163,1751182294938,-9534.23,0.00028714,3]
[368457164,1751182294948,-965.3,0.00028714,3]
[368457165,1751182294958,-5998.34,0.00028714,3]
[368457166,1751182294968,-2020.83,0.00028714,3]
[368457167,1751182294978,-3627.03,0.00028714,3]
[368457168,1751182294988,-3212.39,0.00028714,3]
[368457169,1751182294999,-1870.81,0.00028714,3]
[368457170,1751182295008,-3110.6,0.00028714,3]
[368457171,1751182295018,-2825.64,0.00028714,3]
[368457172,1751182295027,-3598.8,0.00028714,3]
[368457173,1751182295037,-168.0,0.0002872,2]
[368457174,1751182295048,-1001.29188529,0.00028721,3]
[368457175,1751182295058,-1031.74152762,0.00028721,5]
[368457176,1751182295068,-1000.0,0.00028721,5]
[368457177,1751182295079,-1000.0,0.00028721,5]
[368457178,1751182295089,-1000.0,0.00028721,5]
[368457179,1751182295099,-1000.0,0.00028721,5]
[368457180,1751182295109,-1000.0,0.00028721,5]